bitfinex-derivatives/quotes_BTCF0:USTF0_20241023
["timestamp","ask_amount","ask_price","bid_price","bid_amount"]
[1729693469898,0.074998,66705.0,66704.0,0.17]
[1729693470986,0.074998,66705.0,66704.0,0.19497597]
[1729693471691,0.074998,66705.0,66704.0,0.26997497]
[1729693472090,0.074998,66705.0,66704.0,0.19497597]
[1729693472791,0.244998,66705.0,66704.0,0.02497597]
[1729693472989,0.244998,66705.0,66697.0,0.17]
[1729693472990,0.075005,66698.0,66697.0,0.17]
[1729693473190,0.075005,66698.0,66697.0,0.19469921]
[1729693474483,0.075005,66698.0,66697.0,0.26970621]
[1729693474689,0.075003,66701.0,66700.0,0.075002]
[1729693474893,0.075003,66701.0,66700.0,0.245002]
[1729693475596,0.075003,66701.0,66700.0,0.17]
[1729693476092,0.075003,66701.0,66700.0,0.245003]
[1729693481095,0.5,66710.0,66700.0,0.17]
[1729693481292,0.5,66710.0,66703.0,0.074999]
[1729693481293,0.075,66704.0,66703.0,0.074999]
[1729693482493,0.075,66704.0,66703.0,0.244999]
[1729693482894,0.5,66710.0,66703.0,0.34]
[1729693483088,0.074998,66707.0,66706.0,0.074995]
[1729693483784,0.576632,66710.0,66709.0,0.074993]
[1729693484087,0.576632,66710.0,66709.0,0.244993]
[1729693484088,0.574992,66710.0,66709.0,0.244993]
[1729693486788,0.574992,66710.0,66709.0,0.27034867]
[1729693488190,0.574992,66710.0,66709.0,0.02535567]
[1729693488395,0.574992,66710.0,66705.0,0.17]
[1729693488598,0.074996,66706.0,66705.0,0.17]
[1729693489591,0.074996,66706.0,66705.0,0.19471394]
[1729693491600,0.50164,66710.0,66705.0,0.19471394]
[1729693491791,0.074994,66708.0,66707.0,0.074995]
[1729693493688,0.074994,66708.0,66707.0,0.17]
[1729693494298,0.074994,66708.0,66707.0,0.244995]
[1729693496003,0.074994,66708.0,66707.0,0.27079417]
[1729693497599,0.074994,66708.0,66707.0,0.31547623]
[1729693498603,0.074994,66708.0,66707.0,0.27079417]
[1729693500608,0.074994,66708.0,66707.0,0.24056649]
[1729693501509,0.074994,66708.0,66707.0,0.02579917]
[1729693501705,0.074996,66706.0,66705.0,0.04476732]
[1729693502205,0.074998,66705.0,66704.0,0.244998]
[1729693502407,0.074998,66705.0,66704.0,0.2706216]
[1729693504404,0.074998,66705.0,66704.0,0.1956236]
[1729693504712,0.074998,66705.0,66704.0,0.0256236]
[1729693505014,0.075005,66698.0,66697.0,0.17]
[1729693505309,0.075005,66698.0,66697.0,0.245007]
[1729693505508,0.075001,66702.0,66701.0,0.074998]
[1729693505699,0.075001,66702.0,66701.0,0.244998]
[1729693505896,0.1218,66707.0,66701.0,0.244998]
[1729693506109,0.137995,66707.0,66706.0,0.244996]
[1729693506504,0.576632,66710.0,66706.0,0.074996]
[1729693506726,0.574992,66710.0,66709.0,0.244993]
[1729693507708,0.574992,66710.0,66709.0,0.17]
[1729693508311,0.574992,66710.0,66709.0,0.19537971]
[1729693508513,0.574992,66710.0,66709.0,0.02537971]
[1729693508708,0.574992,66710.0,66706.0,0.17]
[1729693508917,0.074995,66707.0,66706.0,0.17]
[1729693509608,0.074995,66707.0,66706.0,0.22958076]
[1729693510211,0.074995,66707.0,66706.0,0.32958722]
[1729693510914,0.074995,66707.0,66706.0,0.27000646]
[1729693513922,0.2295,66717.0,66712.0,0.074989]
[1729693513923,0.074986,66716.0,66712.0,0.074989]
[1729693514215,0.074986,66716.0,66712.0,0.30472315]
[1729693514216,0.074993,66713.0,66712.0,0.30472315]
[1729693514415,0.074993,66713.0,66712.0,0.244989]
[1729693515224,0.074986,66720.0,66719.0,0.074981]
[1729693515407,0.00224888,66723.0,66719.0,0.074981]
[1729693515607,0.00224888,66723.0,66722.0,0.074979]
[1729693515608,0.07722688,66723.0,66722.0,0.074979]
[1729693516315,0.07722688,66723.0,66722.0,0.13464495]
[1729693516505,0.07722688,66723.0,66722.0,0.074979]
[1729693516710,0.00224888,66723.0,66721.0,0.17]
[1729693516907,0.074979,66722.0,66718.0,0.31961712]
[1729693517105,0.074979,66722.0,66721.0,0.05966919]
[1729693517814,0.074979,66722.0,66718.0,0.17]
[1729693517815,0.074982,66719.0,66718.0,0.17]
[1729693518910,0.074982,66719.0,66718.0,0.28972472]
[1729693519407,0.074982,66719.0,66718.0,0.24967259]
[1729693519907,0.00224888,66723.0,66718.0,0.24967259]
[1729693520108,0.074976,66725.0,66722.0,0.244979]
[1729693520308,0.074976,66725.0,66724.0,0.414976]
[1729693520508,0.0625,66733.0,66728.0,0.074968]
[1729693520509,0.074972,66729.0,66728.0,0.074968]
[1729693520708,0.074972,66729.0,66728.0,0.244968]
[1729693521410,0.074968,66732.0,66731.0,0.074967]
[1729693521606,0.0612,66742.0,66731.0,0.074967]
[1729693521607,0.074963,66739.0,66738.0,0.07496]
[1729693521813,0.074963,66739.0,66738.0,0.24496]
[1729693522421,0.00224794,66747.0,66743.0,0.074952]
[1729693522422,0.074954,66744.0,66743.0,0.074952]
[1729693522619,0.074954,66744.0,66743.0,0.244952]
[1729693522920,0.074954,66744.0,66743.0,0.28955334]
[1729693523117,0.074954,66744.0,66743.0,0.244952]
[1729693524409,0.00224794,66747.0,66743.0,0.36465682]
[1729693524611,0.074948,66749.0,66748.0,0.074948]
[1729693524817,0.074948,66749.0,66748.0,0.17]
[1729693526019,0.074948,66749.0,66748.0,0.244949]
[1729693529025,0.074946,66753.0,66752.0,0.074945]
[1729693529223,0.074946,66753.0,66752.0,0.244945]
[1729693529828,0.0589,66757.0,66756.0,0.07494]
[1729693530131,0.06,66764.0,66756.0,0.17]
[1729693530309,0.134932,66764.0,66763.0,0.244932]
[1729693530613,0.074929,66768.0,66767.0,0.074927]
[1729693530814,0.002247,66775.0,66770.0,0.074923]
[1729693530815,0.074925,66771.0,66770.0,0.074923]
[1729693531009,0.074925,66771.0,66770.0,0.244923]
[1729693531424,0.074925,66771.0,66770.0,0.17]
[1729693532625,0.074925,66771.0,66770.0,0.19501358]
[1729693533826,0.074925,66771.0,66770.0,0.26993858]
[1729693535218,0.077169,66775.0,66774.0,0.07492]
[1729693535417,0.077169,66775.0,66774.0,0.17]
[1729693535912,0.077169,66775.0,66774.0,0.24492]
[1729693536525,0.077169,66775.0,66774.0,0.17]
[1729693536723,0.074922,66772.0,66771.0,0.244923]
[1729693540529,0.074923,66771.0,66770.0,0.02501358]
[1729693540732,0.074935,66761.0,66760.0,0.074935]
[1729693541320,0.074945,66752.0,66751.0,0.02486649]
[1729693541519,0.074945,66752.0,66751.0,0.074946]
[1729693542431,0.138537,66760.0,66750.0,0.17]
[1729693542432,0.0636,66760.0,66755.0,0.074941]
[1729693542734,0.074945,66753.0,66752.0,0.074945]
[1729693543131,0.074948,66750.0,66749.0,0.074948]
[1729693543634,0.074945,66752.0,66751.0,0.074945]
[1729693544237,0.17,66754.0,66747.0,0.24495]
[1729693544438,0.17,66750.0,66743.0,0.17]
[1729693544736,0.074955,66743.0,66742.0,0.00224691]
[1729693545448,0.074955,66743.0,66742.0,0.02800416]
[1729693546331,0.074955,66743.0,66742.0,0.27296016]
[1729693546536,0.0606,66744.0,66742.0,0.19800416]
[1729693546734,0.135555,66744.0,66743.0,0.074955]
[1729693548228,0.135555,66744.0,66742.0,0.19800416]
[1729693548229,0.0606,66744.0,66742.0,0.19800416]
[1729693548434,0.074955,66743.0,66742.0,0.02800416]
[1729693549434,0.074955,66743.0,66742.0,0.02575725]
[1729693549636,0.0606,66744.0,66740.0,0.074958]
[1729693549637,0.074957,66741.0,66740.0,0.074958]
[1729693549830,0.074957,66741.0,66739.0,0.17]
[1729693549831,0.074958,66740.0,66739.0,0.17]
[1729693550033,0.17,66748.0,66739.0,0.19577746]
[1729693550225,0.17,66748.0,66741.0,0.074956]
[1729693550226,0.074957,66742.0,66741.0,0.074956]
[1729693553346,0.074953,66745.0,66744.0,0.074953]
[1729693554843,0.0641,66748.0,66747.0,0.07495]
[1729693555235,0.0641,66748.0,66747.0,0.28916382]
[1729693555442,0.0641,66748.0,66747.0,0.24495]
[1729693555943,0.074949,66749.0,66748.0,0.074949]
[1729693556445,0.1235,66754.0,66747.0,0.17]
[1729693556446,0.074945,66752.0,66751.0,0.074945]
[1729693558448,0.074945,66752.0,66745.0,0.04421382]
[1729693558449,0.074952,66749.0,66748.0,0.074949]
[1729693559646,0.0628,66756.0,66752.0,0.074941]
[1729693559845,0.137741,66756.0,66755.0,0.244941]
[1729693560046,0.137741,66756.0,66755.0,0.074941]
[1729693560453,0.137741,66756.0,66755.0,0.244941]
[1729693560454,0.0628,66756.0,66755.0,0.244941]
[1729693560640,0.17,66765.0,66761.0,0.074931]
[1729693560945,0.074934,66762.0,66761.0,0.074931]
[1729693561344,0.074934,66762.0,66759.0,0.17]
[1729693561345,0.074932,66764.0,66763.0,0.07493]
[1729693561537,0.00224762,66766.0,66759.0,0.17]
[1729693561744,0.074941,66755.0,66754.0,0.11915582]
[1729693561946,0.074941,66755.0,66754.0,0.074942]
[1729693562247,0.074945,66752.0,66751.0,0.0445269]
[1729693562546,0.244945,66752.0,66751.0,0.0445269]
[1729693562744,0.074945,66752.0,66751.0,0.0445269]
[1729693562954,0.0581,66754.0,66750.0,0.074946]
[1729693563153,0.074946,66751.0,66750.0,0.244946]
[1729693563353,0.133044,66754.0,66753.0,0.074944]
[1729693564041,0.074944,66754.0,66753.0,0.074944]
[1729693565652,0.074946,66751.0,66750.0,0.02474145]
[1729693565852,0.074944,66754.0,66749.0,0.074948]
[1729693566042,0.074947,66750.0,66749.0,0.074948]
[1729693566247,0.07495,66749.0,66748.0,0.074948]
[1729693569543,0.17,66755.0,66746.0,0.19590256]
[1729693569544,0.244942,66755.0,66746.0,0.19590256]
[1729693569749,0.07495,66747.0,66746.0,0.19590256]
[1729693569950,0.07495,66747.0,66746.0,0.27085456]
[1729693570853,0.07495,66747.0,66746.0,0.19590256]
[1729693572151,0.07495,66747.0,66746.0,0.02590256]
[1729693572353,0.074952,66746.0,66745.0,0.074952]
[1729693572757,0.074949,66749.0,66748.0,0.074948]
[1729693574068,0.074949,66749.0,66748.0,0.22728751]
[1729693574268,0.074949,66749.0,66748.0,0.15282322]
[1729693574466,0.074946,66752.0,66751.0,0.074945]
[1729693574658,0.074939,66758.0,66757.0,0.074937]
[1729693574865,0.00224762,66766.0,66757.0,0.074937]
[1729693574866,0.074936,66761.0,66760.0,0.074935]
[1729693576350,0.074931,66764.0,66763.0,0.074931]
[1729693576558,0.074931,66764.0,66763.0,0.13446499]
[1729693576777,0.074931,66764.0,66763.0,0.074931]
[1729693577266,0.00224762,66766.0,66765.0,0.07493]
[1729693577472,0.00224762,66766.0,66765.0,0.2265263]
[1729693577663,0.307996,66779.0,66773.0,0.074921]
[1729693577664,0.07492,66774.0,66773.0,0.074921]
[1729693578759,0.074906,66787.0,66772.0,0.17]
[1729693578760,0.074913,66781.0,66772.0,0.22949901]
[1729693578961,0.074909,66785.0,66780.0,0.17]
[1729693579264,0.0638,66786.0,66780.0,0.244913]
[1729693579265,0.074912,66781.0,66780.0,0.244913]
[1729693579560,0.074917,66777.0,66776.0,0.074918]
[1729693579758,0.074921,66773.0,66772.0,0.074921]
[1729693579959,0.074921,66773.0,66762.0,0.07437376]
[1729693579960,0.17,66773.0,66765.0,0.22949901]
[1729693580161,0.074929,66766.0,66765.0,0.24493]
[1729693580360,0.074929,66766.0,66765.0,0.28948363]
[1729693580858,0.074929,66766.0,66765.0,0.27068837]
[1729693581063,0.074929,66766.0,66765.0,0.02575837]
[1729693581373,0.07493,66765.0,66764.0,0.074931]
[1729693581868,0.074932,66763.0,66762.0,0.244934]
[1729693582168,0.074929,66767.0,66766.0,0.074929]
[1729693582671,0.17,66769.0,66762.0,0.244933]
[1729693582856,0.138723,66772.0,66760.0,0.04455278]
[1729693582857,0.074935,66761.0,66760.0,0.04455278]
[1729693583164,0.17,66766.0,66749.0,0.04455278]
[1729693583165,0.074939,66757.0,66749.0,0.04455278]
[1729693583351,0.074939,66757.0,66749.0,0.02486631]
[1729693583352,0.17,66750.0,66749.0,0.02486631]
[1729693583552,0.244947,66750.0,66745.0,0.04455278]
[1729693583861,0.074958,66740.0,66739.0,0.04455278]
[1729693584160,0.074958,66740.0,66739.0,0.24964699]
[1729693585170,0.074955,66744.0,66742.0,0.074955]
[1729693585355,0.074951,66748.0,66747.0,0.07495]
[1729693585555,0.17,66752.0,66743.0,0.21460442]
[1729693585768,0.17,66752.0,66743.0,0.28955942]
[1729693585967,0.074954,66744.0,66743.0,0.28955942]
[1729693586667,0.00224786,66754.0,66743.0,0.17]
[1729693586867,0.00224786,66754.0,66749.0,0.17]
[1729693586868,0.074948,66750.0,66749.0,0.17]
[1729693587469,0.00224786,66754.0,66746.0,0.04459369]
[1729693587470,0.07495,66747.0,66746.0,0.04459369]
[1729693588270,0.074952,66746.0,66745.0,0.04459369]
[1729693588568,0.074952,66746.0,66745.0,0.21459369]
[1729693588960,0.074952,66746.0,66745.0,0.244953]
[1729693589772,0.00224786,66754.0,66745.0,0.244952]
[1729693589773,0.074944,66753.0,66745.0,0.244952]
[1729693589969,0.074951,66747.0,66746.0,0.11953935]
[1729693590454,0.074951,66747.0,66746.0,0.074951]
[1729693591863,0.074951,66747.0,66746.0,0.00468752]
[1729693592062,0.00224786,66754.0,66741.0,0.08437033]
[1729693592063,0.074954,66744.0,66743.0,0.04458835]
[1729693592365,0.074955,66743.0,66742.0,0.04458835]
[1729693592569,0.135455,66743.0,66742.0,0.04927622]
[1729693592958,0.135455,66743.0,66742.0,0.00937578]
[1729693593362,0.305455,66743.0,66742.0,0.00937578]
[1729693593575,0.305455,66743.0,66742.0,0.00468787]
[1729693593864,0.305455,66743.0,66734.0,0.00224762]
[1729693593865,0.074964,66735.0,66734.0,0.00224762]
[1729693594069,0.074964,66735.0,66734.0,0.02777365]
[1729693594370,0.074964,66735.0,66734.0,0.00224762]
[1729693594768,0.074964,66735.0,66734.0,0.07721262]
[1729693594972,0.074963,66737.0,66736.0,0.074962]
[1729693595176,0.074963,66737.0,66736.0,0.17]
[1729693595664,0.074963,66737.0,66736.0,0.244963]
[1729693596872,0.074963,66737.0,66736.0,0.17]
[1729693597074,0.074963,66737.0,66734.0,0.00224762]
[1729693597075,0.074964,66735.0,66734.0,0.00224762]
[1729693600070,0.074964,66735.0,66734.0,0.06174663]
[1729693600364,0.074964,66735.0,66734.0,0.23174663]
[1729693600570,0.074964,66735.0,66734.0,0.30671163]
[1729693600773,0.074964,66735.0,66734.0,0.24721262]
[1729693601167,0.074964,66735.0,66734.0,0.00224762]
[1729693601370,0.074964,66735.0,66734.0,0.07721262]
[1729693601578,0.0605,66743.0,66734.0,0.17224762]
[1729693601770,0.07496,66739.0,66738.0,0.244959]
[1729693602079,0.07496,66739.0,66738.0,0.30436123]
[1729693602280,0.074956,66742.0,66741.0,0.074956]
[1729693602468,0.074956,66742.0,66741.0,0.30435178]
[1729693602776,0.074954,66745.0,66744.0,0.074952]
[1729693602966,0.074954,66745.0,66744.0,0.30433252]
[1729693603166,0.074954,66745.0,66744.0,0.30433375]
[1729693603468,0.074954,66745.0,66740.0,0.07437376]
[1729693603469,0.074957,66742.0,66741.0,0.244957]
[1729693604762,0.074957,66742.0,66741.0,0.074957]
[1729693604960,0.074957,66742.0,66738.0,0.17]
[1729693604961,0.17,66748.0,66738.0,0.17]
[1729693605167,0.17,66748.0,66747.0,0.04454315]
[1729693605381,0.244949,66748.0,66747.0,0.04454315]
[1729693606086,0.244949,66748.0,66743.0,0.05938613]
[1729693606271,0.07495,66747.0,66746.0,0.04454811]
[1729693606471,0.17,66748.0,66741.0,0.074957]
[1729693606472,0.074954,66744.0,66743.0,0.04454811]
[1729693606779,0.074956,66742.0,66741.0,0.13434313]
[1729693607073,0.074949,66749.0,66748.0,0.074947]
[1729693608577,0.074945,66753.0,66752.0,0.074944]
[1729693608769,0.074945,66753.0,66752.0,0.244944]
[1729693610677,0.00224786,66754.0,66752.0,0.244944]
[1729693610678,0.00224786,66754.0,66753.0,0.074944]
[1729693610879,0.00224786,66754.0,66753.0,0.137644]
[1729693611088,0.0573,66769.0,66768.0,0.074927]
[1729693611375,0.074925,66770.0,66769.0,0.074926]
[1729693611764,0.0573,66777.0,66768.0,0.17]
[1729693612072,0.0573,66777.0,66774.0,0.24492]
[1729693612377,0.074919,66776.0,66774.0,0.24492]
[1729693612770,0.0573,66777.0,66774.0,0.24492]
[1729693612771,0.07716659,66775.0,66774.0,0.24492]
[1729693614180,0.00224759,66775.0,66774.0,0.24492]
[1729693614894,0.00224759,66775.0,66774.0,0.27015941]
[1729693615474,0.07716659,66775.0,66774.0,0.27015941]
[1729693617574,0.07716659,66775.0,66774.0,0.19523941]
[1729693618380,0.074919,66775.0,66774.0,0.27015941]
[1729693619868,0.074915,66779.0,66778.0,0.074915]
[1729693620069,0.074915,66779.0,66778.0,0.244915]
[1729693621476,0.00224675,66789.0,66778.0,0.17]
[1729693621680,0.07714975,66789.0,66788.0,0.17]
[1729693621979,0.074903,66789.0,66788.0,0.17]
[1729693622379,0.074907,66786.0,66785.0,0.17]
[1729693622974,0.11524,66799.0,66785.0,0.17]
[1729693622975,0.074903,66790.0,66789.0,0.074902]
[1729693623183,0.074903,66790.0,66789.0,0.244902]
[1729693623577,0.074903,66790.0,66784.0,0.17]
[1729693623578,0.074914,66780.0,66779.0,0.074914]
[1729693623786,0.17,66780.0,66770.0,0.17]
[1729693623981,0.074908,66786.0,66783.0,0.074909]
[1729693624177,0.05964631,66800.0,66774.0,0.11516]
[1729693624489,0.074896,66796.0,66785.0,0.074907]
[1729693624682,0.074896,66796.0,66794.0,0.074897]
[1729693624886,0.074895,66796.0,66795.0,0.17]
[1729693625283,0.074895,66796.0,66795.0,0.244897]
[1729693625685,0.074895,66796.0,66795.0,0.17]
[1729693626478,0.0597,66797.0,66791.0,0.0749]
[1729693626675,0.0597,66797.0,66791.0,0.17]
[1729693626880,0.0749,66792.0,66791.0,0.244901]
[1729693628786,0.0749,66792.0,66791.0,0.19491385]
[1729693629575,0.0749,66792.0,66791.0,0.26981485]
[1729693632989,0.00224631,66800.0,66791.0,0.19491385]
[1729693633191,0.15999002,66838.0,66791.0,0.19491385]
[1729693633192,0.1217,66812.0,66802.0,0.074888]
[1729693633378,0.1217,66812.0,66808.0,0.074879]
[1729693633379,0.074882,66809.0,66808.0,0.074879]
[1729693633581,0.074882,66809.0,66799.0,0.074892]
[1729693633582,0.074879,66811.0,66810.0,0.074879]
[1729693634382,0.074866,66823.0,66810.0,0.074879]
[1729693634583,0.074866,66822.0,66821.0,0.17]
[1729693635182,0.074875,66815.0,66814.0,0.074875]
[1729693635590,0.074875,66814.0,66813.0,0.17]
[1729693635788,0.074875,66814.0,66798.0,0.0618]
[1729693635789,0.074875,66814.0,66810.0,0.17]
[1729693636089,0.074879,66811.0,66810.0,0.17]
[1729693636283,0.074883,66807.0,66806.0,0.17]
[1729693642396,0.074883,66807.0,66806.0,0.244884]
[1729693642596,0.074878,66813.0,66812.0,0.074876]
[1729693642999,0.074878,66813.0,66811.0,0.17]
[1729693643000,0.1853,66822.0,66811.0,0.17]
[1729693643185,0.074878,66812.0,66811.0,0.244878]
[1729693645296,0.074878,66812.0,66811.0,0.17]
[1729693645996,0.074878,66812.0,66811.0,0.19555387]
[1729693646294,0.074878,66812.0,66811.0,0.27043287]
[1729693648095,0.074878,66812.0,66811.0,0.19555387]
[1729693652605,0.074866,66823.0,66822.0,0.074865]
[1729693652806,0.074862,66826.0,66825.0,0.074862]
[1729693653010,0.074862,66826.0,66825.0,0.244862]
[1729693653312,0.11504,66837.0,66825.0,0.17]
[1729693653503,0.07710644,66827.0,66826.0,0.074862]
[1729693653702,0.074862,66826.0,66825.0,0.17]
[1729693654007,0.074862,66826.0,66825.0,0.244863]
[1729693655304,0.074862,66826.0,66825.0,0.26953684]
[1729693655506,0.244862,66826.0,66825.0,0.02467384]
[1729693655707,0.074869,66821.0,66820.0,0.074868]
[1729693656610,0.17838,66826.0,66818.0,0.244869]
[1729693656611,0.07487,66819.0,66818.0,0.244869]
[1729693657412,0.07488,66811.0,66810.0,0.074878]
[1729693657908,0.074881,66809.0,66808.0,0.17]
[1729693658409,0.074884,66806.0,66805.0,0.02477232]
[1729693658724,0.074893,66798.0,66797.0,0.244894]
[1729693659011,0.1245,66808.0,66794.0,0.00224544]
[1729693659012,0.17,66804.0,66794.0,0.00224544]
[1729693659310,0.17,66804.0,66794.0,0.07714344]
[1729693659311,0.074897,66795.0,66794.0,0.07714344]
[1729693659500,0.074897,66795.0,66794.0,0.27229148]
[1729693659703,0.074897,66795.0,66794.0,0.19739348]
[1729693660007,0.074897,66795.0,66794.0,0.02739348]
[1729693660310,0.244897,66795.0,66794.0,0.00224544]
[1729693664803,0.07491,66783.0,66778.0,0.04452919]
[1729693665006,0.07491,66783.0,66775.0,0.074919]
[1729693665007,0.074918,66776.0,66775.0,0.04452919]
[1729693665211,0.074919,66775.0,66774.0,0.04452919]
[1729693665406,0.17,66779.0,66772.0,0.04452919]
[1729693665407,0.07492,66774.0,66772.0,0.04452919]
[1729693665620,0.07492,66774.0,66773.0,0.21452919]
[1729693665916,0.07492,66774.0,66773.0,0.17]
[1729693666311,0.07492,66774.0,66773.0,0.244921]
[1729693666507,0.17,66779.0,66772.0,0.02483812]
[1729693666702,0.074921,66774.0,66771.0,0.074923]
[1729693667016,0.0589,66782.0,66770.0,0.02817546]
[1729693667017,0.074923,66771.0,66770.0,0.02817546]
[1729693667214,0.074923,66771.0,66770.0,0.02741546]
[1729693668019,0.074914,66780.0,66770.0,0.02741546]
[1729693668020,0.074916,66778.0,66776.0,0.074917]
[1729693668316,0.074916,66778.0,66777.0,0.17]
[1729693669210,0.0589,66782.0,66774.0,0.28943405]
[1729693669211,0.074918,66776.0,66774.0,0.28943405]
[1729693669412,0.074919,66775.0,66774.0,0.21451405]
[1729693670226,0.074919,66775.0,66774.0,0.04447696]
[1729693670714,0.07492,66774.0,66773.0,0.11939796]
[1729693670919,0.07492,66774.0,66773.0,0.074921]
[1729693671121,0.0589,66782.0,66771.0,0.17]
[1729693671316,0.0589,66782.0,66770.0,0.02741546]
[1729693671317,0.0589,66782.0,66778.0,0.17]
[1729693671521,0.074915,66779.0,66778.0,0.244916]
[1729693672425,0.074918,66776.0,66775.0,0.04445777]
[1729693674021,0.074918,66776.0,66775.0,0.11937677]
[1729693674220,0.0589,66782.0,66774.0,0.21445777]
[1729693674525,0.00224718,66790.0,66781.0,0.244912]
[1729693674720,0.074911,66782.0,66781.0,0.244912]
[1729693677219,0.074911,66782.0,66781.0,0.17]
[1729693677516,0.074911,66782.0,66781.0,0.19547341]
[1729693678509,0.074911,66782.0,66781.0,0.2398896]
[1729693679121,0.074911,66782.0,66781.0,0.19547341]
[1729693679416,0.074911,66782.0,66781.0,0.2398896]
[1729693679606,0.074911,66782.0,66781.0,0.0698896]
[1729693680012,0.074911,66782.0,66781.0,0.02547341]
[1729693680311,0.0602,66788.0,66781.0,0.17]
[1729693680510,0.074911,66782.0,66781.0,0.17]
[1729693681313,0.074911,66782.0,66781.0,0.28931808]
[1729693681716,0.074911,66782.0,66781.0,0.21440608]
[1729693683020,0.074911,66782.0,66781.0,0.17]
[1729693686225,0.074911,66782.0,66781.0,0.244912]
[1729693686417,0.074911,66782.0,66781.0,0.30414403]
[1729693686612,0.074908,66786.0,66785.0,0.074906]
[1729693686817,0.074908,66786.0,66785.0,0.28947756]
[1729693687026,0.074908,66786.0,66785.0,0.244906]
[1729693689221,0.074908,66786.0,66785.0,0.31894604]
[1729693689426,0.074908,66786.0,66785.0,0.39648448]
[1729693689823,0.074908,66786.0,66785.0,0.31894604]
[1729693690215,0.074908,66786.0,66785.0,0.24753071]
[1729693690423,0.244908,66786.0,66785.0,0.07753071]
[1729693690938,0.244908,66786.0,66785.0,0.10261911]
[1729693692218,0.074903,66791.0,66785.0,0.10261911]
[1729693692418,0.074903,66789.0,66788.0,0.07451949]
[1729693692724,0.074903,66789.0,66788.0,0.07753071]
[1729693694625,0.074903,66789.0,66783.0,0.08884805]
[1729693694826,0.074903,66789.0,66773.0,0.27365606]
[1729693694827,0.074913,66780.0,66779.0,0.08884805]
[1729693695026,0.074915,66779.0,66778.0,0.08884805]
[1729693695226,0.074915,66779.0,66777.0,0.08884805]
[1729693695227,0.074916,66778.0,66777.0,0.08884805]
[1729693695637,0.074917,66777.0,66776.0,0.08884805]
[1729693696625,0.074919,66775.0,66774.0,0.07492]
[1729693696937,0.17,66796.0,66774.0,0.09151171]
[1729693697126,0.074908,66785.0,66784.0,0.074908]
[1729693700135,0.074908,66785.0,66784.0,0.09990232]
[1729693703434,0.074908,66785.0,66784.0,0.18935922]
[1729693703743,0.1187,66793.0,66784.0,0.09990232]
[1729693703931,0.1187,66793.0,66791.0,0.2449]
[1729693703932,0.0749,66792.0,66791.0,0.2449]
[1729693704531,0.0749,66792.0,66787.0,0.17]
[1729693704837,0.074904,66789.0,66788.0,0.074904]
[1729693707039,0.074908,66785.0,66784.0,0.02499432]
[1729693707243,0.074908,66785.0,66778.0,0.16437123]
[1729693707244,0.074916,66779.0,66778.0,0.16437123]
[1729693707742,0.074916,66779.0,66778.0,0.074913]
[1729693709636,0.074916,66779.0,66778.0,0.15202063]
[1729693711046,0.074914,66782.0,66781.0,0.074912]
[1729693711255,0.074916,66778.0,66777.0,0.27044094]
[1729693711439,0.074916,66778.0,66777.0,0.34753292]
[1729693712840,0.074916,66778.0,66777.0,0.10261592]
[1729693713436,0.074923,66778.0,66777.0,0.19466344]
[1729693713741,0.074923,66778.0,66777.0,0.19486015]
[1729693713944,0.074923,66778.0,66777.0,0.10277721]
[1729693714248,0.44924,66778.0,66772.0,0.08939444]
[1729693714447,0.24493,66772.0,66769.0,0.08939444]
[1729693714944,0.07493,66772.0,66769.0,0.074933]
[1729693715145,0.074932,66771.0,66769.0,0.16432744]
[1729693715343,0.074932,66771.0,66769.0,0.074933]
[1729693716434,0.074932,66771.0,66767.0,0.08939444]
[1729693716639,0.074932,66771.0,66768.0,0.074933]
[1729693717648,0.074932,66771.0,66767.0,0.0251873]
[1729693717854,0.074932,66771.0,66766.0,0.26015444]
[1729693718042,0.074932,66771.0,66766.0,0.25939444]
[1729693718239,0.074932,66771.0,66770.0,0.074932]
[1729693719146,0.17,66775.0,66766.0,0.19503821]
[1729693719345,0.074929,66774.0,66766.0,0.19503821]
[1729693719541,0.074929,66774.0,66773.0,0.074929]
[1729693720155,0.074932,66770.0,66769.0,0.074932]
[1729693723249,0.0569,66777.0,66768.0,0.08939444]
[1729693723450,0.246705,66777.0,66776.0,0.1344615]
[1729693723655,0.246705,66777.0,66776.0,0.074925]
[1729693724247,0.246705,66777.0,66770.0,0.17]
[1729693724248,0.074929,66774.0,66773.0,0.074928]
[1729693729358,0.074929,66774.0,66773.0,0.14934603]
[1729693730161,0.074929,66774.0,66773.0,0.074928]
[1729693731656,0.074929,66774.0,66773.0,0.10012787]
[1729693732161,0.244929,66774.0,66773.0,0.10012787]
[1729693733368,0.244929,66774.0,66773.0,0.1745459]
[1729693733864,0.244929,66774.0,66773.0,0.10012787]
[1729693734049,0.074925,66776.0,66775.0,0.074924]
[1729693737357,0.074925,66776.0,66775.0,0.14934203]
[1729693739460,0.074925,66776.0,66775.0,0.074924]
[1729693740267,0.184925,66776.0,66775.0,0.074924]
[1729693740457,0.074925,66776.0,66775.0,0.074924]
[1729693742267,0.074929,66773.0,66769.0,0.08939444]
[1729693742466,0.074931,66771.0,66770.0,0.0771338]
[1729693742667,0.244931,66771.0,66770.0,0.0771338]
[1729693742861,0.244931,66771.0,66770.0,0.15174535]
[1729693743262,0.244931,66771.0,66770.0,0.15194193]
[1729693743467,0.244931,66771.0,66766.0,0.16433144]
[1729693743468,0.244931,66771.0,66766.0,0.14954855]
[1729693743665,0.244935,66767.0,66766.0,0.07461155]
[1729693744255,0.074937,66766.0,66765.0,0.17498298]
[1729693744469,0.074937,66766.0,66765.0,0.17768772]
[1729693744969,0.074937,66766.0,66765.0,0.25230468]
[1729693745178,0.074937,66766.0,66759.0,0.17]
[1729693745179,0.074938,66765.0,66759.0,0.07461696]